bitfinex/quotes_ETHUSD_20250323
["timestamp","ask_amount","ask_price","bid_price","bid_amount"]
[1742694770618,5.00025,1999.9,1998.8,18.89448346]
[1742694770911,5.00025,1999.9,1998.8,23.13597815]
[1742694771103,10.00069,1999.9,1998.8,23.13597815]
[1742694771301,5.00025,1999.9,1998.8,23.13597815]
[1742694771749,6.06091,2000.0,1999.1,8.00207]
[1742694771935,1.0609,2000.0,1999.8,4.24149469]
[1742694772237,1.0609,2000.0,1999.9,26.449]
[1742694773304,5.00078,1999.7,1999.3,19.49321469]
[1742694773504,5.00078,1999.7,1999.3,9.24321469]
[1742694773931,5.00078,1999.7,1999.3,9.24312469]
[1742694774151,5.00078,1999.7,1999.4,5.00148]
[1742694774555,5.00078,1999.7,1999.3,9.24316469]
[1742694775454,5.00078,1999.7,1999.4,5.00148]
[1742694775807,5.00078,1999.7,1999.4,5.3734491]
[1742694776034,10.00172,1999.7,1999.4,0.3719691]
[1742694776337,0.1817021,1999.6,1999.3,9.24318469]
[1742694776636,5.00078,1999.7,1999.3,9.24318469]
[1742694777150,0.1817021,1999.6,1999.3,9.24318469]
[1742694777350,5.00101,1999.6,1999.3,9.24318469]
[1742694777522,0.1817021,1999.5,1999.3,4.24149469]
[1742694777872,0.1817021,1999.5,1999.2,5.00185]
[1742694778052,5.1829521,1999.5,1999.3,4.24149469]
[1742694779673,5.1829521,1999.5,1999.4,26.441]
[1742694780155,0.1817021,1999.5,1999.4,26.441]
[1742694782142,5.00125,1999.5,1999.4,26.441]
[1742694782345,5.1829521,1999.5,1999.4,26.441]
[1742694783277,6.28136831,1999.5,1999.4,26.441]
[1742694786176,7.08156831,1999.5,1999.4,26.441]
[1742694789380,10.08156831,1999.5,1999.4,26.441]
[1742694790268,5.9831521,1999.5,1999.4,26.441]
[1742694790638,5.1831521,1999.5,1999.4,26.441]
[1742694792177,9.42464679,1999.5,1999.4,26.441]
[1742694802457,9.42464679,1999.5,1998.7,0.3675815]
[1742694802458,5.003,1998.8,1998.7,0.3675815]
[1742694802657,5.003,1998.8,1998.7,26.443]
[1742694802917,5.17868703,1998.8,1998.7,26.443]
[1742694803800,5.17868703,1998.8,1998.7,26.9057505]
[1742694804610,0.17568703,1998.8,1998.7,26.9057505]
[1742694804782,5.00277,1998.9,1998.7,26.9057505]
[1742694804990,0.17549293,1998.8,1998.7,26.9057505]
[1742694805194,5.00277,1998.9,1998.7,26.9057505]
[1742694805363,0.17549293,1998.8,1998.7,26.9057505]
[1742694805566,5.00277,1998.9,1998.7,26.9057505]
[1742694805765,0.17549293,1998.8,1998.7,26.9057505]
[1742694805965,5.00277,1998.9,1998.7,26.9057505]
[1742694806194,0.17549293,1998.8,1998.7,26.9057505]
[1742694806515,5.00277,1998.9,1998.7,26.443]
[1742694806726,0.17549293,1998.8,1998.7,26.443]
[1742694807023,5.00277,1998.9,1998.7,26.443]
[1742694807426,0.17549293,1998.8,1998.7,26.443]
[1742694807724,5.00277,1998.9,1998.7,26.443]
[1742694807927,0.17544441,1998.8,1998.7,26.443]
[1742694808228,5.00277,1998.9,1998.7,26.443]
[1742694808422,0.17544441,1998.8,1998.7,26.443]
[1742694808831,5.00277,1998.9,1998.7,26.443]
[1742694808991,0.17544441,1998.8,1998.7,26.443]
[1742694809214,10.00571,1998.9,1998.7,26.443]
[1742694809420,5.17844441,1998.8,1998.7,26.443]
[1742694809718,5.17844441,1998.8,1998.7,26.90602941]
[1742694811061,5.17844441,1998.8,1998.7,26.443]
[1742694812449,0.17544441,1998.8,1998.7,26.443]
[1742694812655,10.00576,1998.9,1998.7,26.443]
[1742694812956,0.17520174,1998.8,1998.7,26.443]
[1742694814056,10.00576,1998.9,1998.7,26.443]
[1742694814215,0.17520174,1998.8,1998.7,26.443]
[1742694814417,10.00576,1998.9,1998.7,26.443]
[1742694814758,0.17520174,1998.8,1998.7,26.443]
[1742694814958,5.00277,1998.9,1998.7,26.443]
[1742694815333,0.17520174,1998.8,1998.7,26.90663547]
[1742694815657,5.17820174,1998.8,1998.7,26.90663547]
[1742694815859,5.003,1998.8,1998.7,26.90663547]
[1742694816059,5.17820174,1998.8,1998.7,26.90663547]
[1742694818562,10.4377936,1998.8,1998.7,26.90663547]
[1742694818877,11.2605936,1998.8,1998.7,26.90663547]
[1742694819578,11.2605936,1998.8,1998.7,26.443]
[1742694822440,10.24249643,1998.8,1998.7,26.443]
[1742694822643,6.00100174,1998.8,1998.7,26.443]
[1742694823373,10.24249643,1998.8,1998.7,26.443]
[1742694824181,6.00100174,1998.8,1998.7,26.443]
[1742694826479,10.24249643,1998.8,1998.7,26.443]
[1742694826679,11.76702307,1998.8,1998.7,26.443]
[1742694827261,5.00508,1998.0,1997.6,5.0059]
[1742694827454,5.00508,1998.0,1997.7,26.448]
[1742694827455,0.17282342,1997.9,1997.7,26.448]
[1742694829181,0.17282342,1997.9,1997.7,26.8295196]
[1742694830290,5.00508,1998.0,1997.7,26.8295196]
[1742694830661,0.16884259,1997.9,1997.7,26.8295196]
[1742694830863,5.17413259,1997.9,1997.7,26.8295196]
[1742694833405,10.17957259,1997.9,1997.7,26.8295196]
[1742694833996,5.17413259,1997.9,1997.7,26.8295196]
[1742694835384,5.0055,1997.8,1997.7,26.8295196]
[1742694835913,5.17341973,1997.8,1997.7,26.8295196]
[1742694836286,0.16791973,1997.8,1997.7,26.8295196]
[1742694841706,0.16791973,1997.8,1997.7,31.8352696]
[1742694842216,5.00385,1998.5,1998.1,5.00465]
[1742694842518,0.16529732,1998.4,1998.2,5.00445]
[1742694843033,5.00378,1998.5,1998.2,5.00445]
[1742694843222,0.16529732,1998.4,1998.2,5.00445]
[1742694844119,0.16529732,1998.4,1998.1,14.25077469]
[1742694844283,0.16529732,1998.4,1998.1,9.24611469]
[1742694846839,5.16932732,1998.4,1998.1,9.24611469]
[1742694848654,0.16529732,1998.4,1998.1,9.24611469]
[1742694850438,5.16935732,1998.4,1998.1,9.24611469]
[1742694851245,5.00435,1998.3,1998.1,4.24149469]
[1742694851427,0.16986243,1998.2,1998.1,4.24149469]
[1742694851828,0.16986243,1998.2,1997.9,22.49656469]
[1742694852029,0.16986243,1998.2,1997.9,27.50170469]
[1742694852335,0.16986243,1998.2,1997.9,12.24656469]
[1742694852541,5.17440243,1998.2,1997.9,4.24149469]
[1742694852849,10.17913243,1998.2,1997.9,4.24149469]
[1742694853057,5.00483,1998.1,1997.8,15.25547]
[1742694853251,5.00483,1998.1,1997.8,9.24696469]
[1742694853449,0.16986243,1998.0,1997.8,9.24696469]
[1742694853640,5.00454,1998.2,1997.8,9.24696469]
[1742694853950,0.16986243,1998.1,1997.8,9.24696469]
[1742694854348,5.00454,1998.2,1997.8,14.25230469]
[1742694854658,0.16986243,1998.1,1997.9,0.05004356]
[1742694854954,5.00454,1998.2,1997.8,9.24683469]
[1742694855342,0.16986243,1998.1,1997.8,9.24683469]
[1742694855654,5.00454,1998.2,1997.8,9.24683469]
[1742694856153,0.16986243,1998.1,1997.8,9.24683469]
[1742694856455,5.00454,1998.2,1997.8,9.24683469]
[1742694856619,0.16986243,1998.1,1997.8,9.24683469]
[1742694856823,5.00454,1998.2,1997.8,9.24683469]
[1742694857222,0.16986243,1998.1,1997.8,9.24683469]
[1742694857456,5.00454,1998.2,1997.8,9.24683469]
[1742694857756,0.16986243,1998.1,1997.8,9.24683469]
[1742694858075,5.00454,1998.2,1997.8,9.24683469]
[1742694858231,0.16986243,1998.1,1997.8,9.24683469]
[1742694858437,10.00928,1998.2,1997.8,9.24683469]
[1742694858859,0.16986243,1998.1,1997.8,9.24683469]
[1742694859059,10.00928,1998.2,1997.8,9.24683469]
[1742694859218,0.16986243,1998.1,1997.8,9.24683469]
[1742694859432,10.00928,1998.2,1997.8,9.24683469]
[1742694859634,0.16986243,1998.1,1997.8,9.24683469]
[1742694859847,10.00928,1998.2,1997.8,9.24683469]
[1742694860046,0.16986243,1998.1,1997.8,9.24683469]
[1742694860246,10.00928,1998.2,1997.8,9.24683469]
[1742694860445,0.16986243,1998.1,1997.8,9.24683469]
[1742694860646,10.00928,1998.2,1997.8,9.24683469]
[1742694860835,0.16986243,1998.1,1997.8,9.24683469]
[1742694861060,10.00928,1998.2,1997.8,9.24683469]
[1742694861262,0.16986243,1998.1,1997.8,9.24683469]
[1742694861759,5.00454,1998.2,1997.8,9.24683469]
[1742694861958,10.00922,1998.2,1997.8,9.24683469]
[1742694862170,0.16986243,1998.1,1997.8,9.24683469]
[1742694862367,5.17461243,1998.1,1997.8,4.24149469]
[1742694862670,5.17461243,1998.1,1997.8,9.24688469]
[1742694862671,0.16986243,1998.1,1997.8,9.24688469]
[1742694862968,10.00924,1998.2,1997.8,9.24688469]
[1742694864172,5.00454,1998.2,1997.8,9.24688469]
[1742694864470,10.00918,1998.2,1997.8,9.24688469]
[1742694864674,10.00918,1998.2,1997.9,26.454]
[1742694866072,0.16821146,1998.1,1997.9,26.454]
[1742694866292,10.00918,1998.2,1997.9,26.454]
[1742694866476,0.16821146,1998.1,1997.9,26.454]
[1742694866678,10.00918,1998.2,1997.9,26.454]
[1742694866850,0.16821146,1998.1,1997.9,26.454]
[1742694867052,5.00477,1998.1,1997.9,26.454]
[1742694867379,5.00454,1998.2,1997.9,26.454]
[1742694867671,0.16821146,1998.1,1997.9,26.454]
[1742694867864,5.00486,1998.1,1997.9,26.454]
[1742694868259,0.16821146,1998.0,1997.9,26.454]
[1742694882100,5.00451,1998.2,1997.9,26.454]
[1742694882264,0.16796867,1998.1,1997.9,28.99690031]
[1742694882797,0.16796867,1998.1,1997.9,26.454]
[1742694883863,0.16796867,1998.1,1998.0,26.455]
[1742694885091,5.17271867,1998.1,1998.0,26.455]
[1742694891387,9.55204185,1998.1,1998.0,26.455]
[1742694891719,7.00914154,1998.1,1998.0,26.455]
[1742694895189,5.17271867,1998.1,1998.0,26.455]
[1742694899218,0.16796867,1998.1,1998.0,28.99790031]
[1742694899520,5.00436,1998.3,1998.0,28.99790031]
[1742694899724,5.17117742,1998.2,1998.0,26.455]
[1742694901635,0.16665742,1998.2,1998.0,26.455]
[1742694901810,2.54290031,1998.5,1998.0,26.455]
[1742694901811,0.7735,1999.6,1999.4,5.00128]
[1742694901989,0.7735,1999.8,1999.5,29.04990891]
[1742694902189,0.7735,1999.8,1999.6,26.457]
[1742694902595,5.77402,1999.8,1999.6,26.457]
[1742694903495,0.7735,1999.8,1999.6,26.457]
[1742694903803,5.77405,1999.8,1999.6,26.457]
[1742694904826,5.00075,1999.7,1999.6,26.457]
[1742694909347,5.14704129,1999.7,1999.6,26.457]
[1742694916867,5.91214129,1999.7,1999.6,26.457]
[1742694918949,10.14422967,1999.7,1999.6,26.457]
[1742694919944,5.00257,1999.0,1998.5,13.25]
[1742694920150,0.1514437,1998.9,1998.8,5.00283]
[1742694920350,5.002,1999.2,1998.8,5.00277]
[1742694920545,0.14998633,1999.1,1998.8,5.00277]
[1742694920744,5.002,1999.2,1998.8,5.00277]
[1742694924289,0.14954903,1999.1,1998.8,5.00277]
[1742694925492,5.0014,1999.5,1999.0,9.23455838]
[1742694925714,5.0013,1999.5,1999.1,5.00221]
[1742694925990,0.14940326,1999.4,1999.1,5.00221]
[1742694926494,0.14940326,1999.4,1999.2,26.444]
[1742694926997,0.14940326,1999.4,1999.2,31.44599]
[1742694927898,0.14940326,1999.4,1999.2,36.44786]
[1742694928103,5.001,1999.6,1999.2,31.44587]
[1742694928304,0.15110369,1999.5,1999.2,31.44587]
[1742694929001,0.15110369,1999.5,1999.4,5.0015]
[1742694929207,0.15110369,1999.5,1999.3,5.0016]
[1742694929408,5.00087,1999.7,1999.3,5.0016]
[1742694930007,0.15115226,1999.6,1999.3,5.0016]
[1742694930394,5.00087,1999.7,1999.3,5.0016]
[1742694930573,0.15202664,1999.5,1999.3,5.0016]
[1742694930902,0.15202664,1999.4,1999.3,5.0016]
[1742694931101,5.00087,1999.7,1999.3,10.00311]
[1742694931308,0.15202664,1999.6,1999.3,10.00311]
[1742694931503,5.76566,1999.8,1999.4,5.00149]
[1742694931702,0.15202664,1999.7,1999.4,5.00149]
[1742694933216,0.15202664,1999.7,1999.6,5.001]
[1742694933912,11.01307,2000.0,1999.6,5.001]
[1742694934211,0.15202664,1999.9,1999.6,5.001]
[1742694934510,5.15229664,1999.9,1999.7,0.05000176]
[1742694934718,5.0005,1999.8,1999.5,5.00101]
[1742694935015,5.0005,1999.8,1999.5,5.37084679]
[1742694935214,0.15202664,1999.7,1999.5,5.37084679]
[1742694935409,0.15202664,1999.7,1999.6,4.28209222]
[1742694935618,0.15202664,1999.7,1999.6,9.28309222]
[1742694935816,0.2496,2000.0,1999.7,5.00072]
[1742694936013,0.2496,2000.0,1999.8,26.44]
[1742694936218,5.2496,2000.0,1999.8,26.44]
[1742694937321,5.00025,1999.9,1999.8,26.44]
[1742694937710,5.24965,2000.0,1999.8,26.44]
[1742694938411,10.24988,2000.0,1999.8,26.44]
[1742694938822,5.00025,1999.9,1999.8,26.44]
[1742694941131,5.15227664,1999.9,1999.8,26.44]
[1742694944326,5.97507664,1999.9,1999.8,26.44]
[1742694944493,7.0975513,1999.9,1999.8,26.44]
[1742694946119,5.15227664,1999.9,1999.8,26.44]
[1742694947525,0.15202664,1999.9,1999.8,26.44]
[1742694948426,5.15227664,1999.9,1999.8,26.44]
[1742694949826,0.15202664,1999.9,1999.8,26.44]
[1742694950331,5.15227664,1999.9,1999.8,26.44]
[1742694951731,0.15202664,1999.9,1999.8,26.44]
[1742694955313,5.15227664,1999.9,1999.8,26.44]
[1742694958704,0.15202664,1999.9,1999.8,26.44]
[1742694959640,0.15202664,1999.9,1999.8,31.4405]
[1742694960704,0.15202664,1999.9,1999.8,31.9030279]
[1742694961105,0.15202664,1999.9,1999.8,32.27305281]
[1742694961326,0.15202664,1999.9,1999.8,27.27255281]
[1742694961927,5.15227664,1999.9,1999.8,27.27255281]
[1742694962125,0.15202664,1999.9,1999.8,27.27255281]
[1742694962439,0.15202664,1999.9,1999.8,26.44]
[1742694962935,5.15227664,1999.9,1999.8,26.44]
[1742694966742,0.15202664,1999.9,1999.8,26.44]
[1742694967446,0.15202664,1999.9,1999.8,26.90291061]
[1742694968549,0.15202664,1999.9,1999.8,27.27317364]
[1742694970255,0.15202664,1999.9,1999.8,26.90291061]
[1742694976369,0.15202664,1999.9,1999.8,31.90341061]
[1742694977334,0.2496,2000.0,1999.8,36.90391061]
[1742694977533,0.15450353,1999.9,1999.8,31.90341061]
[1742694977773,0.15450353,1999.9,1999.8,32.27368738]
[1742694978336,0.15450353,1999.9,1999.8,33.01410737]
[1742694979174,0.15450353,1999.9,1999.8,37.24619575]
[1742694979472,0.2496,2000.0,1999.9,5.00025]
[1742694979663,0.2496,2000.0,1999.9,5.05024114]
[1742694979969,0.40410353,2000.0,1999.9,5.05024069]
[1742694980569,0.40410353,2000.0,1999.9,10.24478315]
[1742694980763,0.40410353,2000.0,1999.9,10.19479246]
[1742694981359,0.40410353,2000.0,1999.9,7.16603468]
[1742694981739,0.40410353,2000.0,1999.9,11.39812306]
[1742694983981,0.40410353,2000.0,1999.9,7.16603468]
[1742694985982,0.40410353,2000.0,1999.9,6.57385737]
[1742694993090,0.40410353,2000.0,1999.9,5.83343738]
[1742694996589,0.40410353,2000.0,1999.9,6.57266338]
[1742694998372,0.40410353,2000.0,1999.9,33.00266338]
[1742695000463,0.40410353,2000.0,1999.9,28.00241338]
[1742695001892,0.40410353,2000.0,1999.9,33.00266338]
[1742695002196,0.2496,2000.0,1999.9,33.00266338]
[1742695002371,0.40735654,2000.0,1999.9,33.00266338]
[1742695003566,0.40735654,2000.0,1999.9,37.23475176]
[1742695003793,0.2496,2000.0,1999.9,37.23475176]
[1742695005414,0.2496,2000.0,1999.9,37.78475176]
[1742695005911,1e-05,2000.0,1999.9,54.1261849]
[1742695006662,1e-05,2000.0,1999.9,51.1261849]
[1742695008580,5.9229823,2000.5,2000.1,4.99957]
[1742695008875,0.15911561,2000.4,2000.1,4.99957]
[1742695009298,0.15911561,2000.4,2000.2,0.37027677]
[1742695009514,0.15911561,2000.4,2000.2,27.26118738]
[1742695010506,0.15911561,2000.4,2000.3,0.46291061]
[1742695011011,5.15811561,2000.4,2000.3,0.46291061]
[1742695011512,5.15811561,2000.4,2000.2,26.428]
[1742695011812,0.15911561,2000.4,2000.2,26.428]
[1742695011970,0.15911561,2000.4,2000.2,31.42739]
[1742695012171,0.15911561,2000.4,2000.3,4.99925]
[1742695012382,0.15911561,2000.4,2000.3,5.04923552]
[1742695012581,0.15911561,2000.4,2000.3,4.99925]
[1742695012971,0.15911561,2000.4,2000.3,5.73839131]
[1742695013186,0.15911561,2000.4,2000.3,0.73914131]
[1742695013700,0.15911561,2000.4,2000.3,5.73839131]
[1742695013905,0.15911561,2000.4,2000.3,6.10793008]
[1742695014069,0.15911561,2000.4,2000.3,6.56984925]
[1742695014906,0.15911561,2000.4,2000.3,5.83070794]
[1742695016791,0.15911561,2000.4,2000.3,0.83145794]
[1742695018374,0.15911561,2000.4,2000.3,0.46191917]
[1742695018776,0.15935827,2000.4,2000.3,0.46191917]
[1742695018986,4.77525791,2000.6,2000.3,0.46191917]
[1742695019675,9.77397791,2000.6,2000.2,31.79430186]
[1742695020804,4.77525791,2000.6,2000.2,31.79430186]
[1742695021012,9.77396791,2000.6,2000.3,0.46176043]
[1742695021190,4.77525791,2000.6,2000.3,0.46176043]
[1742695021509,9.77395791,2000.6,2000.3,0.46176043]
[1742695021712,4.77525791,2000.6,2000.3,0.46176043]
[1742695021908,5.80477,2000.7,2000.3,5.46096043]
[1742695022112,10.80324,2000.7,2000.3,5.46096043]
[1742695022319,4.99861,2000.6,2000.2,31.79430186]
[1742695022807,4.99861,2000.6,2000.2,36.79362186]
[1742695023816,4.99861,2000.6,2000.3,31.42522]
[1742695025183,5.80477,2000.7,2000.3,31.42522]
[1742695025379,0.8065,2000.7,2000.4,4.99897]
[1742695025814,5.80477,2000.7,2000.4,4.99897]
[1742695026114,5.80477,2000.7,2000.5,0.46167577]
[1742695026484,0.14813697,2000.6,2000.5,0.46167577]
[1742695028828,0.14813697,2000.6,2000.5,26.88767577]
[1742695030329,5.14663697,2000.6,2000.5,26.88767577]
[1742695030898,5.14663697,2000.6,2000.5,26.426]
[1742695033523,5.93503697,2000.6,2000.5,26.426]
[1742695035203,8.47241289,2000.6,2000.5,26.426]
[1742695035736,9.38086703,2000.6,2000.5,26.426]
[1742695037236,11.07286956,2000.6,2000.5,26.426]
[1742695044685,6.84349111,2000.6,2000.5,26.426]
[1742695044862,10.16441542,2000.6,2000.5,26.426]
[1742695059092,8.47243076,2000.6,2000.5,26.426]
[1742695062385,5.14663697,2000.6,2000.5,26.426]
[1742695062588,7.68403076,2000.6,2000.5,26.426]
[1742695064810,8.44653076,2000.6,2000.5,26.426]
[1742695076151,7.68403076,2000.6,2000.5,26.426]
[1742695078374,7.68403076,2000.6,2000.5,26.88927039]
[1742695082243,7.68403076,2000.6,2000.5,26.426]
[1742695091590,2.68553076,2000.6,2000.5,26.426]
[1742695091796,7.68403076,2000.6,2000.5,26.426]
[1742695094996,7.68403076,2000.6,2000.5,26.88944779]
[1742695096199,7.68403076,2000.6,2000.5,26.426]
[1742695096999,8.46893076,2000.6,2000.5,26.426]
[1742695097510,7.68403076,2000.6,2000.5,26.426]
[1742695109918,8.50983076,2000.6,2000.5,26.426]
[1742695114221,4.99886,2000.5,2000.4,26.428]
[1742695114428,7.53625379,2000.5,2000.4,26.428]
[1742695114718,7.68414814,2000.5,2000.4,26.428]
[1742695115395,9.03499295,2000.5,2000.4,26.428]
[1742695117924,11.57238674,2000.5,2000.4,26.428]
[1742695118126,9.03499295,2000.5,2000.4,26.428]
[1742695118925,2.68528814,2000.5,2000.4,26.428]
[1742695119221,7.68403814,2000.5,2000.4,26.428]
[1742695120293,2.68528814,2000.5,2000.4,26.428]
[1742695120507,0.14789435,2000.5,2000.4,31.427]
[1742695120706,0.14789435,2000.5,2000.4,26.428]
[1742695121523,2.53739379,2000.7,2000.4,36.426]
[1742695121723,0.14677817,2000.6,2000.4,36.426]
[1742695124231,0.14677817,2000.6,2000.4,31.427]
[1742695124399,0.14677817,2000.6,2000.4,36.42584]
[1742695126527,0.14677817,2000.6,2000.4,31.42684]
[1742695127540,0.14677817,2000.6,2000.4,36.42566]
[1742695128742,0.14677817,2000.6,2000.4,31.42682]
[1742695129130,2.53739379,2000.7,2000.4,36.42565]
[1742695129318,0.14770017,2000.6,2000.4,36.42565]
[1742695129504,0.14770017,2000.6,2000.5,4.99875]
[1742695131941,0.14770017,2000.6,2000.4,31.42691]
[1742695133335,0.14770017,2000.6,2000.4,36.42576]
[1742695133745,0.14770017,2000.6,2000.4,31.42685]
[1742695134713,0.14770017,2000.6,2000.4,36.42568]
[1742695135340,0.14770017,2000.6,2000.4,31.42683]
[1742695136953,2.68509396,2000.6,2000.4,31.42683]
[1742695137251,2.68509396,2000.6,2000.4,26.428]
[1742695138551,2.68509396,2000.6,2000.5,26.425]
[1742695143958,7.68359396,2000.6,2000.5,26.425]
[1742695145960,2.68509396,2000.6,2000.5,26.425]
[1742695150267,2.68509396,2000.6,2000.5,26.79600309]
[1742695150858,2.68509396,2000.6,2000.5,31.79475309]
[1742695151056,0.14770017,2000.6,2000.5,31.79475309]
[1742695152462,0.14770017,2000.6,2000.5,32.53692219]
[1742695154760,0.8325,2001.0,2000.8,4.99786]
[1742695154961,2.68601606,2000.9,2000.8,4.99786]
[1742695155557,2.68601606,2000.9,2000.7,4.99811]
[1742695155939,2.68601606,2000.9,2000.7,10.7383691]
[1742695156139,2.68601606,2000.9,2000.8,0.37100309]
[1742695157659,2.68601606,2000.9,2000.7,4.99809]
[1742695159036,2.68601606,2000.9,2000.7,9.99618]
[1742695159436,2.68601606,2000.9,2000.7,4.99809]
[1742695159668,0.14862227,2000.9,2000.8,4.998]
[1742695160046,2.53739379,2000.9,2000.8,4.998]
[1742695160347,2.68601606,2000.9,2000.8,4.998]
[1742695160673,2.68601606,2000.9,2000.8,5.83164879]
[1742695161473,2.68601606,2000.9,2000.8,0.83364879]
[1742695161972,0.14862227,2000.9,2000.8,0.83364879]
[1742695162271,2.68601606,2000.9,2000.8,0.37035953]
[1742695164475,0.14862227,2000.9,2000.8,0.37035953]
[1742695165570,2.68601606,2000.9,2000.8,0.37035953]
[1742695165782,0.14862227,2000.9,2000.8,0.37035953]
[1742695166478,0.14862227,2000.9,2000.7,5.36844953]
[1742695166980,0.14862227,2000.9,2000.8,4.998]
[1742695167180,2.53739379,2001.0,2000.8,4.998]
[1742695167381,2.53739379,2001.0,2000.9,26.421]
[1742695175089,2.94891679,2001.1,2000.9,31.41863]
[1742695175458,0.15051427,2001.0,2000.9,31.41863]
[1742695175883,2.68790806,2001.0,2000.9,26.421]
[1742695176263,2.68790806,2001.0,2000.9,26.80502359]
[1742695176888,2.68790806,2001.0,2000.9,31.80277359]
[1742695179787,0.15051427,2001.0,2000.9,31.80277359]
[1742695185091,0.15051427,2001.0,2000.9,32.26604516]
[1742695186991,0.15051427,2001.0,2000.9,27.26829516]
[1742695187165,2.68790806,2001.0,2000.9,27.26829516]
[1742695187693,2.68790806,2001.0,2000.9,26.80502359]
[1742695191991,3.46840806,2001.0,2000.9,26.421]
[1742695192184,9.35362817,2001.0,2000.9,26.421]
[1742695196291,11.89102196,2001.0,2000.9,26.421]
[1742695196872,14.89102196,2001.0,2000.9,26.421]
[1742695197074,5.77939,2000.5,2000.3,0.37675141]
[1742695197293,2.53739379,2000.4,2000.1,9.99922]
[1742695197482,2.68834481,2000.4,2000.2,26.42]
[1742695197876,2.53739379,2000.3,2000.2,26.80414285]
[1742695198575,2.68834481,2000.3,2000.2,26.80414285]
[1742695199394,2.68834481,2000.3,2000.2,26.42]
[1742695199584,7.68759481,2000.3,2000.2,26.42]
[1742695200567,8.48009481,2000.3,2000.2,26.42]
[1742695200968,10.51156918,2000.3,2000.2,26.42]
[1742695202071,8.48009481,2000.3,2000.2,26.42]
[1742695202265,0.15095102,2000.3,2000.2,26.42]
[1742695202803,0.15095102,2000.3,2000.2,31.4195]
[1742695203096,0.15095102,2000.3,2000.2,26.42]
[1742695203300,0.15095102,2000.3,2000.2,31.4195]
[1742695209812,2.68834481,2000.3,2000.2,31.4195]
[1742695210110,2.68834481,2000.3,2000.2,26.42]
[1742695210313,7.95642929,2000.3,2000.2,26.42]
[1742695210515,8.74892929,2000.3,2000.2,26.42]
[1742695212512,0.15095102,2000.3,2000.2,26.42]
[1742695213215,0.15095102,2000.3,2000.2,31.4195]
[1742695213985,0.15095102,2000.3,2000.2,31.9695]
[1742695216517,0.15095102,2000.3,2000.2,26.42]
[1742695217500,0.15095102,2000.3,2000.2,26.97]
[1742695217699,4.22951589,2000.5,2000.2,31.96931]
[1742695218021,0.14823406,2000.4,2000.3,4.99919]
[1742695220617,0.14823406,2000.4,2000.2,31.96944]
[1742695223222,0.14823406,2000.4,2000.3,26.427]
[1742695225227,0.14823406,2000.4,2000.3,31.42625]
[1742695227231,0.14823406,2000.4,2000.3,31.97625]
[1742695227447,4.99971589,2000.8,2000.5,4.99865]
[1742695227598,4.99971589,2000.8,2000.5,0.04998246]
[1742695227801,5.04161589,2001.0,2000.8,4.99787]
[1742695228000,0.411523,2001.1,2000.5,5.36542004]
[1742695228001,0.411523,2001.1,2000.9,4.99762]
[1742695232040,0.411523,2001.1,2000.8,10.36438922]
[1742695232538,0.411523,2001.1,2000.9,5.04769197]
[1742695232839,0.411523,2001.1,2001.0,4.9975]
[1742695234338,0.56295879,2001.1,2001.0,4.9975]
[1742695236032,0.56295879,2001.1,2001.0,31.4195]
[1742695241045,0.56295879,2001.1,2001.0,26.422]
[1742695241245,4.79247468,2001.1,2001.0,26.422]
[1742695241451,10.58402468,2001.1,2001.0,26.422]
[1742695241943,12.14212715,2001.1,2001.0,26.422]
[1742695245015,1.35725879,2001.1,2001.0,26.422]
[1742695245338,10.58402468,2001.1,2001.0,26.422]
[1742695250854,13.58402468,2001.1,2001.0,26.422]
[1742695252273,4.99875,2000.5,2000.4,26.422]
[1742695252427,10.02948589,2000.9,2000.5,4.99864]
[1742695253132,10.02948589,2000.9,2000.5,10.04720272]
[1742695253649,10.02948589,2000.9,2000.5,5.04856272]
[1742695253955,4.99801,2000.8,2000.5,4.99858]
[1742695254448,4.99801,2000.8,2000.4,31.42092]
[1742695254651,4.99801,2000.8,2000.4,31.42084]
[1742695254949,4.99801,2000.8,2000.4,36.41968]
[1742695255449,10.02943589,2000.9,2000.5,5.04872275]
[1742695255826,15.02736589,2000.9,2000.5,5.04872101]
[1742695256025,15.02737589,2000.9,2000.5,4.99874]
[1742695258757,4.99804,2000.8,2000.4,31.42091]
[1742695259054,9.99621,2000.8,2000.4,31.42091]
[1742695259462,9.99615,2000.8,2000.4,31.42086]
[1742695259663,4.99804,2000.8,2000.4,31.42086]
[1742695260157,4.99804,2000.8,2000.4,36.41976]
[1742695260860,4.99804,2000.8,2000.4,31.42086]
[1742695261231,4.99804,2000.8,2000.4,36.41971]
[1742695261430,4.99804,2000.8,2000.4,31.42085]
[1742695263262,4.22951589,2000.7,2000.4,31.42085]
[1742695263461,9.22779589,2000.7,2000.4,26.422]
[1742695264035,0.13755725,2000.6,2000.4,26.422]
[1742695265759,0.13755725,2000.6,2000.5,26.423]
[1742695270364,5.13605725,2000.6,2000.5,26.423]
[1742695270566,0.13755725,2000.6,2000.5,26.423]
[1742695275962,0.13755725,2000.6,2000.5,31.42175]
[1742695276267,4.22951589,2000.9,2000.6,4.99828]
[1742695276434,4.22951589,2000.9,2000.6,10.04662966]
[1742695276635,4.22951589,2000.9,2000.7,4.99804]
[1742695277365,4.22951589,2000.9,2000.5,31.42172]
[1742695277366,5.81243,2000.8,2000.5,26.423]
[1742695277569,4.22951589,2000.6,2000.5,26.423]
[1742695277968,9.22801589,2000.6,2000.5,26.423]
[1742695278973,9.36625318,2000.6,2000.5,26.423]
[1742695279982,10.18055318,2000.6,2000.5,26.423]
[1742695280176,4.99984,2000.1,1999.6,15.25098]
[1742695280361,4.22951589,1999.7,1999.6,5.00098]
[1742695280674,4.22951589,1999.7,1999.6,26.423]
[1742695281046,4.36673299,1999.7,1999.6,26.423]
[1742695281879,9.36748299,1999.7,1999.6,26.423]
[1742695286679,4.36673299,1999.7,1999.6,26.423]
[1742695287381,9.36748299,1999.7,1999.6,26.423]
[1742695287946,10.14558299,1999.7,1999.6,26.423]
[1742695288572,11.66021229,1999.7,1999.6,26.423]
[1742695288876,5.0017,1999.4,1999.1,26.431]